[Event "Titled Tuesday Blitz February 01 A 2022"]
[White "Lenderman, Aleksandr"]
[Black "Deac, Bogdan-Daniel"]
[WhiteFideId "2021285"]
[BlackFideId "1226380"]
[WhiteElo "2651"]
[BlackElo "2646"]
[Result "1-0"]
[Round "05"]
[TimeControl "180+1"]
[Date "2022.02.01"]
[WhiteClock "0:00:09"]
[BlackClock "0:00:07"]

1. d4 {[%clk 0:02:51]}  Nf6 {[%clk 0:02:59]} 2. c4 {[%clk 0:02:51]}  e6 {[%clk 0:02:59]} 3. Nf3 {[%clk 0:02:51]}  d5 {[%clk 0:02:59]} 4. Nc3 {[%clk 0:02:52]}  dxc4 {[%clk 0:02:58]} 5. e3 {[%clk 0:02:44]}  a6 {[%clk 0:02:57]} 6. a4 {[%clk 0:02:38]}  c5 {[%clk 0:02:56]} 7. Bxc4 {[%clk 0:02:38]}  Nc6 {[%clk 0:02:57]} 8. O-O {[%clk 0:02:37]}  Be7 {[%clk 0:02:58]} 9. Qe2 {[%clk 0:02:25]}  O-O {[%clk 0:02:49]} 10. Rd1 {[%clk 0:02:25]}  Qc7 {[%clk 0:02:48]} 11. dxc5 {[%clk 0:02:25]}  Bxc5 {[%clk 0:02:46]} 12. b3 {[%clk 0:02:23]}  b6 {[%clk 0:01:57]} 13. Bb2 {[%clk 0:02:22]}  Bb7 {[%clk 0:01:56]} 14. Bd3 {[%clk 0:02:13]}  Nb4 {[%clk 0:01:49]} 15. Bc4 {[%clk 0:02:11]}  Rfd8 {[%clk 0:01:35]} 16. Rxd8+ {[%clk 0:02:11]}  Rxd8 {[%clk 0:01:35]} 17. Rd1 {[%clk 0:02:11]}  h6 {[%clk 0:00:58]} 18. h3 {[%clk 0:02:03]}  Rd7 {[%clk 0:00:20]} 19. Nb1 {[%clk 0:01:49]}  Ne4 {[%clk 0:00:17]} 20. Nbd2 {[%clk 0:01:45]}  Nxd2 {[%clk 0:00:14]} 21. Rxd2 {[%clk 0:01:45]}  Bf8 {[%clk 0:00:13]} 22. Ne5 {[%clk 0:01:33]}  Rxd2 {[%clk 0:00:13]} 23. Qxd2 {[%clk 0:01:34]}  Nc6 {[%clk 0:00:13]} 24. Nxc6 {[%clk 0:01:26]}  Qxc6 {[%clk 0:00:13]} 25. f3 {[%clk 0:01:27]}  b5 {[%clk 0:00:13]} 26. axb5 {[%clk 0:01:25]}  axb5 {[%clk 0:00:13]} 27. Be2 {[%clk 0:01:25]}  Qd5 {[%clk 0:00:13]} 28. Qc3 {[%clk 0:00:55]}  b4 {[%clk 0:00:07]} 29. Qc2 {[%clk 0:00:50]}  Bc5 {[%clk 0:00:06]} 30. Kf2 {[%clk 0:00:49]}  Qg5 {[%clk 0:00:06]} 31. Qd2 {[%clk 0:00:48]}  Bd5 {[%clk 0:00:05]} 32. Qd3 {[%clk 0:00:39]}  f5 {[%clk 0:00:03]} 33. g3 {[%clk 0:00:27]}  Bd6 {[%clk 0:00:03]} 34. f4 {[%clk 0:00:27]}  Qe7 {[%clk 0:00:03]} 35. Bf3 {[%clk 0:00:26]}  Bxf3 {[%clk 0:00:03]} 36. Kxf3 {[%clk 0:00:27]}  Bc5 {[%clk 0:00:03]} 37. e4 {[%clk 0:00:26]}  Qb7 {[%clk 0:00:03]} 38. g4 {[%clk 0:00:24]}  fxe4+ {[%clk 0:00:03]} 39. Qxe4 {[%clk 0:00:23]}  Qd7 {[%clk 0:00:04]} 40. Ke2 {[%clk 0:00:21]}  Bf8 {[%clk 0:00:04]} 41. Qc4 {[%clk 0:00:17]}  Kh7 {[%clk 0:00:03]} 42. Qd3+ {[%clk 0:00:17]}  Qxd3+ {[%clk 0:00:03]} 43. Kxd3 {[%clk 0:00:18]}  Bd6 {[%clk 0:00:04]} 44. Ke4 {[%clk 0:00:17]}  Kg6 {[%clk 0:00:03]} 45. Bd4 {[%clk 0:00:14]}  Kf7 {[%clk 0:00:03]} 46. f5 {[%clk 0:00:14]}  exf5+ {[%clk 0:00:03]} 47. gxf5 {[%clk 0:00:13]}  g6 {[%clk 0:00:03]} 48. Kd5 {[%clk 0:00:11]}  Bg3 {[%clk 0:00:03]} 49. fxg6+ {[%clk 0:00:11]}  Kxg6 {[%clk 0:00:04]} 50. Bc5 {[%clk 0:00:09]}  Kh5 {[%clk 0:00:04]} 51. Be7 {[%clk 0:00:07]}  Be1 {[%clk 0:00:03]} 52. Kc4 {[%clk 0:00:08]}  Bd2 {[%clk 0:00:03]} 53. Bxb4 {[%clk 0:00:07]}  Bf4 {[%clk 0:00:04]} 54. Be7 {[%clk 0:00:07]}  Kg6 {[%clk 0:00:04]} 55. Kd5 {[%clk 0:00:06]}  Kf5 {[%clk 0:00:04]} 56. b4 {[%clk 0:00:06]}  Kg6 {[%clk 0:00:04]} 57. b5 {[%clk 0:00:06]}  Kf7 {[%clk 0:00:05]} 58. Bd6 {[%clk 0:00:06]}  Be3 {[%clk 0:00:05]} 59. Bc5 {[%clk 0:00:06]}  Bf4 {[%clk 0:00:04]} 60. b6 {[%clk 0:00:07]}  Ke8 {[%clk 0:00:05]} 61. Bd6 {[%clk 0:00:07]}  Be3 {[%clk 0:00:03]} 62. b7 {[%clk 0:00:07]}  Ba7 {[%clk 0:00:04]} 63. Ke6 {[%clk 0:00:08]}  Kd8 {[%clk 0:00:04]} 64. b8=Q+ {[%clk 0:00:07]}  Bxb8 {[%clk 0:00:05]} 65. Bxb8 {[%clk 0:00:08]}  Ke8 {[%clk 0:00:06]} 66. Bd6 {[%clk 0:00:08]}  Kd8 {[%clk 0:00:06]} 67. h4 {[%clk 0:00:08]}  Ke8 {[%clk 0:00:07]} 68. h5 {[%clk 0:00:09]} 1-0


[Site "https://www.chess.com"]

[Event "Titled Tuesday Blitz February 01 A 2022"]
[White "Madaminov, Mukhiddin"]
[Black "Yeletsky, Ivan"]
[WhiteFideId "14210703"]
[BlackFideId "24180327"]
[WhiteElo "1916"]
[BlackElo "2348"]
[Result "0-1"]
[Round "05"]
[TimeControl "180+1"]
[Date "2022.02.01"]
[WhiteClock "0:00:02"]
[BlackClock "0:00:11"]

1. d4 {[%clk 0:03:00]}  Nf6 {[%clk 0:02:58]} 2. Nc3 {[%clk 0:03:01]}  d5 {[%clk 0:02:58]} 3. Bf4 {[%clk 0:03:02]}  a6 {[%clk 0:02:57]} 4. e3 {[%clk 0:03:02]}  b5 {[%clk 0:02:57]} 5. Nf3 {[%clk 0:03:01]}  e6 {[%clk 0:02:56]} 6. Bd3 {[%clk 0:02:54]}  Nbd7 {[%clk 0:02:55]} 7. Ne2 {[%clk 0:02:43]}  c5 {[%clk 0:02:54]} 8. c3 {[%clk 0:02:43]}  Be7 {[%clk 0:02:40]} 9. O-O {[%clk 0:02:43]}  Nh5 {[%clk 0:02:38]} 10. a4 {[%clk 0:02:32]}  b4 {[%clk 0:02:32]} 11. cxb4 {[%clk 0:02:23]}  c4 {[%clk 0:02:32]} 12. Bc2 {[%clk 0:02:19]}  Bxb4 {[%clk 0:02:26]} 13. b3 {[%clk 0:02:17]}  cxb3 {[%clk 0:02:23]} 14. Bxb3 {[%clk 0:02:18]}  Nxf4 {[%clk 0:02:16]} 15. Nxf4 {[%clk 0:02:18]}  a5 {[%clk 0:02:16]} 16. Bc2 {[%clk 0:02:09]}  O-O {[%clk 0:02:15]} 17. Rc1 {[%clk 0:02:04]}  Nf6 {[%clk 0:02:06]} 18. Ne5 {[%clk 0:02:02]}  Ba6 {[%clk 0:02:01]} 19. Bd3 {[%clk 0:02:01]}  Ne4 {[%clk 0:01:57]} 20. Bxa6 {[%clk 0:01:55]}  Rxa6 {[%clk 0:01:57]} 21. Qd3 {[%clk 0:01:56]}  Rb6 {[%clk 0:01:51]} 22. Rc2 {[%clk 0:01:53]}  Bd6 {[%clk 0:01:47]} 23. Rfc1 {[%clk 0:01:48]}  Bxe5 {[%clk 0:01:44]} 24. dxe5 {[%clk 0:01:49]}  Rb4 {[%clk 0:01:33]} 25. f3 {[%clk 0:01:29]}  Ng5 {[%clk 0:01:26]} 26. h4 {[%clk 0:01:11]}  Nxf3+ {[%clk 0:01:26]} 27. gxf3 {[%clk 0:01:11]}  Qxh4 {[%clk 0:01:27]} 28. Kg2 {[%clk 0:00:44]}  Rxa4 {[%clk 0:01:11]} 29. Rc8 {[%clk 0:00:21]}  Ra2+ {[%clk 0:01:10]} 30. Ne2 {[%clk 0:00:21]}  g6 {[%clk 0:00:59]} 31. f4 {[%clk 0:00:12]}  Rxc8 {[%clk 0:00:53]} 32. Rxc8+ {[%clk 0:00:12]}  Kg7 {[%clk 0:00:54]} 33. Rc2 {[%clk 0:00:10]}  Ra1 {[%clk 0:00:43]} 34. Rc1 {[%clk 0:00:09]}  Rxc1 {[%clk 0:00:40]} 35. Nxc1 {[%clk 0:00:10]}  Qe1 {[%clk 0:00:40]} 36. Ne2 {[%clk 0:00:09]}  a4 {[%clk 0:00:40]} 37. Nd4 {[%clk 0:00:09]}  h5 {[%clk 0:00:34]} 38. Qa3 {[%clk 0:00:07]}  Qh4 {[%clk 0:00:19]} 39. Qxa4 {[%clk 0:00:06]}  Qg4+ {[%clk 0:00:20]} 40. Kh2 {[%clk 0:00:05]}  h4 {[%clk 0:00:20]} 41. Qa7 {[%clk 0:00:04]}  Qg3+ {[%clk 0:00:16]} 42. Kh1 {[%clk 0:00:04]}  Qh3+ {[%clk 0:00:16]} 43. Kg1 {[%clk 0:00:03]}  Qxe3+ {[%clk 0:00:17]} 44. Kg2 {[%clk 0:00:02]}  h3+ {[%clk 0:00:16]} 45. Kf1 {[%clk 0:00:03]}  Qxf4+ {[%clk 0:00:16]} 46. Kg1 {[%clk 0:00:02]}  Qg3+ {[%clk 0:00:15]} 47. Kf1 {[%clk 0:00:02]}  Qxe5 {[%clk 0:00:15]} 48. Nf3 {[%clk 0:00:01]}  Qf4 {[%clk 0:00:14]} 49. Qf2 {[%clk 0:00:02]}  e5 {[%clk 0:00:13]} 50. Ke2 {[%clk 0:00:02]}  d4 {[%clk 0:00:11]} 0-1


[Site "https://www.chess.com"]

[Event "Titled Tuesday Blitz February 01 A 2022"]
[White "Makarian, Rudik"]
[Black "Yuan, Qingyu"]
[WhiteFideId "44105681"]
[BlackFideId "8609772"]
[WhiteElo "2486"]
[BlackElo "2359"]
[Result "1-0"]
[Round "05"]
[TimeControl "180+1"]
[Date "2022.02.01"]
[WhiteClock "0:00:37"]
[BlackClock "0:00:03"]

1. d4 {[%clk 0:03:00]}  d5 {[%clk 0:02:33]} 2. c4 {[%clk 0:03:00]}  e6 {[%clk 0:02:32]} 3. Nf3 {[%clk 0:03:00]}  Nf6 {[%clk 0:02:32]} 4. Nc3 {[%clk 0:03:00]}  a6 {[%clk 0:02:33]} 5. cxd5 {[%clk 0:03:00]}  exd5 {[%clk 0:02:33]} 6. Bf4 {[%clk 0:03:00]}  Bd6 {[%clk 0:02:32]} 7. e3 {[%clk 0:03:01]}  Bxf4 {[%clk 0:02:25]} 8. exf4 {[%clk 0:03:02]}  O-O {[%clk 0:02:25]} 9. Ne5 {[%clk 0:02:59]}  Bf5 {[%clk 0:02:18]} 10. Bd3 {[%clk 0:02:56]}  Bxd3 {[%clk 0:02:18]} 11. Qxd3 {[%clk 0:02:57]}  Nbd7 {[%clk 0:02:17]} 12. O-O {[%clk 0:02:57]}  Re8 {[%clk 0:02:14]} 13. Rfe1 {[%clk 0:02:50]}  Qe7 {[%clk 0:02:07]} 14. Re3 {[%clk 0:02:47]}  Qd6 {[%clk 0:02:05]} 15. Rae1 {[%clk 0:02:45]}  Re6 {[%clk 0:01:53]} 16. g4 {[%clk 0:02:28]}  Rae8 {[%clk 0:01:41]} 17. Rh3 {[%clk 0:02:25]}  g6 {[%clk 0:01:32]} 18. Rhe3 {[%clk 0:02:22]}  c5 {[%clk 0:01:22]} 19. dxc5 {[%clk 0:01:35]}  Qxc5 {[%clk 0:00:44]} 20. Nxd7 {[%clk 0:01:28]}  Nxd7 {[%clk 0:00:44]} 21. Nxd5 {[%clk 0:01:15]}  Rxe3 {[%clk 0:00:28]} 22. Rxe3 {[%clk 0:01:14]}  Rxe3 {[%clk 0:00:20]} 23. Nxe3 {[%clk 0:01:15]}  Nf6 {[%clk 0:00:17]} 24. h3 {[%clk 0:01:08]}  Qc1+ {[%clk 0:00:16]} 25. Kg2 {[%clk 0:01:07]}  Qxb2 {[%clk 0:00:16]} 26. f5 {[%clk 0:01:04]}  g5 {[%clk 0:00:14]} 27. Nd5 {[%clk 0:00:48]}  Kg7 {[%clk 0:00:12]} 28. Qe3 {[%clk 0:00:41]}  h6 {[%clk 0:00:12]} 29. Nc7 {[%clk 0:00:38]}  Qxa2 {[%clk 0:00:11]} 30. Qe7 {[%clk 0:00:38]}  Qb2 {[%clk 0:00:03]} 31. Ne6+ {[%clk 0:00:36]}  Kh7 {[%clk 0:00:03]} 32. Qxf7+ {[%clk 0:00:36]}  Kh8 {[%clk 0:00:03]} 33. Qg7# {[%clk 0:00:37]} 1-0


[Site "https://www.chess.com"]

[Event "Titled Tuesday Blitz February 01 A 2022"]
[White "Martinez Alcantara, Jose Eduardo"]
[Black "Pranesh M"]
[WhiteFideId "3805662"]
[BlackFideId "35028600"]
[WhiteElo "2690"]
[BlackElo "1866"]
[Result "1-0"]
[Round "05"]
[TimeControl "180+1"]
[Date "2022.02.01"]
[WhiteClock "0:01:27"]
[BlackClock "0:00:05"]

1. e4 {[%clk 0:03:00]}  e5 {[%clk 0:02:59]} 2. Nf3 {[%clk 0:03:00]}  Nc6 {[%clk 0:03:00]} 3. Bb5 {[%clk 0:03:00]}  Nf6 {[%clk 0:03:00]} 4. d3 {[%clk 0:03:00]}  Bc5 {[%clk 0:03:00]} 5. O-O {[%clk 0:03:01]}  O-O {[%clk 0:02:58]} 6. Bxc6 {[%clk 0:02:55]}  bxc6 {[%clk 0:02:59]} 7. Nxe5 {[%clk 0:02:54]}  d5 {[%clk 0:03:00]} 8. d4 {[%clk 0:02:51]}  Bb6 {[%clk 0:02:59]} 9. Nxc6 {[%clk 0:02:34]}  Qe8 {[%clk 0:02:59]} 10. exd5 {[%clk 0:02:24]}  Nxd5 {[%clk 0:02:58]} 11. Ne5 {[%clk 0:02:19]}  f6 {[%clk 0:02:54]} 12. Nf3 {[%clk 0:02:14]}  Bg4 {[%clk 0:02:35]} 13. c4 {[%clk 0:02:11]}  Nb4 {[%clk 0:02:26]} 14. c5 {[%clk 0:02:10]}  Ba5 {[%clk 0:02:26]} 15. a3 {[%clk 0:02:07]}  Nc6 {[%clk 0:02:14]} 16. b4 {[%clk 0:02:06]}  Rd8 {[%clk 0:02:15]} 17. Be3 {[%clk 0:02:05]}  Qg6 {[%clk 0:01:31]} 18. Nbd2 {[%clk 0:01:51]}  f5 {[%clk 0:00:58]} 19. Qb3+ {[%clk 0:01:51]}  Kh8 {[%clk 0:00:58]} 20. d5 {[%clk 0:01:45]}  Bh3 {[%clk 0:00:37]} 21. Bg5 {[%clk 0:01:44]}  h6 {[%clk 0:00:17]} 22. gxh3 {[%clk 0:01:41]}  Nd4 {[%clk 0:00:15]} 23. Nxd4 {[%clk 0:01:34]}  Qxg5+ {[%clk 0:00:15]} 24. Qg3 {[%clk 0:01:35]}  Qxd2 {[%clk 0:00:15]} 25. Ne6 {[%clk 0:01:35]}  Rg8 {[%clk 0:00:12]} 26. Nxd8 {[%clk 0:01:35]}  Rxd8 {[%clk 0:00:10]} 27. Rad1 {[%clk 0:01:35]}  Qb2 {[%clk 0:00:09]} 28. bxa5 {[%clk 0:01:36]}  Qf6 {[%clk 0:00:10]} 29. d6 {[%clk 0:01:36]}  c6 {[%clk 0:00:10]} 30. Rfe1 {[%clk 0:01:35]}  f4 {[%clk 0:00:10]} 31. Qg4 {[%clk 0:01:35]}  f3 {[%clk 0:00:10]} 32. d7 {[%clk 0:01:34]}  Kh7 {[%clk 0:00:10]} 33. Re8 {[%clk 0:01:28]}  Rxd7 {[%clk 0:00:04]} 34. Qe4+ {[%clk 0:01:28]}  g6 {[%clk 0:00:03]} 35. Rxd7+ {[%clk 0:01:27]}  Qg7 {[%clk 0:00:04]} 36. Qxc6 {[%clk 0:01:26]}  h5 {[%clk 0:00:03]} 37. Qc7 {[%clk 0:01:26]}  Kh6 {[%clk 0:00:03]} 38. Qf4+ {[%clk 0:01:26]}  g5 {[%clk 0:00:04]} 39. Re6+ {[%clk 0:01:26]}  Qg6 {[%clk 0:00:05]} 40. Qf8# {[%clk 0:01:27]} 1-0


[Site "https://www.chess.com"]

[Event "Titled Tuesday Blitz February 01 A 2022"]
[White "Narayanan.S.L"]
[Black "Bashirli, Nail"]
[WhiteFideId "5058422"]
[BlackFideId "13406809"]
[WhiteElo "2494"]
[BlackElo "2333"]
[Result "1/2-1/2"]
[Round "05"]
[TimeControl "180+1"]
[Date "2022.02.01"]
[WhiteClock "0:00:17"]
[BlackClock "0:00:12"]

1. Nf3 {[%clk 0:02:59]}  d5 {[%clk 0:02:33]} 2. c4 {[%clk 0:02:58]}  e6 {[%clk 0:02:31]} 3. d4 {[%clk 0:02:56]}  Nf6 {[%clk 0:02:29]} 4. Bg5 {[%clk 0:02:57]}  Be7 {[%clk 0:02:28]} 5. Nbd2 {[%clk 0:02:56]}  O-O {[%clk 0:02:27]} 6. e3 {[%clk 0:02:54]}  Nbd7 {[%clk 0:02:26]} 7. Rc1 {[%clk 0:02:52]}  c6 {[%clk 0:02:25]} 8. Bd3 {[%clk 0:02:51]}  b6 {[%clk 0:02:22]} 9. O-O {[%clk 0:02:51]}  Bb7 {[%clk 0:02:22]} 10. cxd5 {[%clk 0:02:49]}  exd5 {[%clk 0:02:20]} 11. Qe2 {[%clk 0:02:42]}  Re8 {[%clk 0:02:19]} 12. Ba6 {[%clk 0:02:42]}  Qc8 {[%clk 0:02:16]} 13. Bxb7 {[%clk 0:02:42]}  Qxb7 {[%clk 0:02:17]} 14. Rc2 {[%clk 0:02:42]}  Rac8 {[%clk 0:02:15]} 15. Rfc1 {[%clk 0:02:41]}  c5 {[%clk 0:02:12]} 16. dxc5 {[%clk 0:02:41]}  bxc5 {[%clk 0:02:13]} 17. h3 {[%clk 0:02:39]}  c4 {[%clk 0:02:09]} 18. b3 {[%clk 0:02:32]}  Ba3 {[%clk 0:02:02]} 19. Rd1 {[%clk 0:02:29]}  cxb3 {[%clk 0:01:17]} 20. Rxc8 {[%clk 0:02:24]}  Rxc8 {[%clk 0:01:15]} 21. Bxf6 {[%clk 0:02:22]}  Nxf6 {[%clk 0:01:15]} 22. axb3 {[%clk 0:02:18]}  Ne4 {[%clk 0:01:12]} 23. Nxe4 {[%clk 0:02:17]}  dxe4 {[%clk 0:01:12]} 24. Ne5 {[%clk 0:02:16]}  Qxb3 {[%clk 0:01:04]} 25. Qg4 {[%clk 0:02:14]}  Re8 {[%clk 0:00:50]} 26. Nc6 {[%clk 0:02:07]}  f5 {[%clk 0:00:41]} 27. Qe2 {[%clk 0:02:04]}  Bc5 {[%clk 0:00:39]} 28. Rc1 {[%clk 0:01:46]}  Bb6 {[%clk 0:00:38]} 29. g3 {[%clk 0:01:42]}  Qd5 {[%clk 0:00:37]} 30. Qh5 {[%clk 0:01:23]}  g6 {[%clk 0:00:33]} 31. Qg5 {[%clk 0:01:23]}  Kg7 {[%clk 0:00:28]} 32. Nd4 {[%clk 0:01:17]}  h6 {[%clk 0:00:23]} 33. Qf4 {[%clk 0:01:14]}  Re7 {[%clk 0:00:20]} 34. Ne2 {[%clk 0:01:01]}  Qe5 {[%clk 0:00:19]} 35. h4 {[%clk 0:00:59]}  Qxf4 {[%clk 0:00:20]} 36. Nxf4 {[%clk 0:01:00]}  a5 {[%clk 0:00:19]} 37. Rc6 {[%clk 0:00:51]}  Rb7 {[%clk 0:00:16]} 38. Rxg6+ {[%clk 0:00:52]}  Kh7 {[%clk 0:00:15]} 39. h5 {[%clk 0:00:39]}  a4 {[%clk 0:00:16]} 40. Nd5 {[%clk 0:00:40]}  Bd8 {[%clk 0:00:13]} 41. Ra6 {[%clk 0:00:40]}  Rb5 {[%clk 0:00:10]} 42. Nc3 {[%clk 0:00:37]}  Ra5 {[%clk 0:00:10]} 43. Rxa5 {[%clk 0:00:37]}  Bxa5 {[%clk 0:00:11]} 44. Nxa4 {[%clk 0:00:38]}  Kg7 {[%clk 0:00:11]} 45. Nc5 {[%clk 0:00:35]}  Kf6 {[%clk 0:00:11]} 46. g4 {[%clk 0:00:34]}  Bb4 {[%clk 0:00:08]} 47. Na6 {[%clk 0:00:25]}  Bd6 {[%clk 0:00:07]} 48. gxf5 {[%clk 0:00:25]}  Kxf5 {[%clk 0:00:08]} 49. Kg2 {[%clk 0:00:25]}  Kg4 {[%clk 0:00:08]} 50. f3+ {[%clk 0:00:14]}  exf3+ {[%clk 0:00:09]} 51. Kf2 {[%clk 0:00:15]}  Be7 {[%clk 0:00:10]} 52. Nc7 {[%clk 0:00:13]}  Bh4+ {[%clk 0:00:10]} 53. Kf1 {[%clk 0:00:14]}  Kxh5 {[%clk 0:00:10]} 54. Ne6 {[%clk 0:00:13]}  Bg3 {[%clk 0:00:09]} 55. Nd4 {[%clk 0:00:13]}  Kg4 {[%clk 0:00:10]} 56. Nxf3 {[%clk 0:00:12]}  Kxf3 {[%clk 0:00:11]} 57. Kg1 {[%clk 0:00:12]}  h5 {[%clk 0:00:11]} 58. Kh1 {[%clk 0:00:13]}  h4 {[%clk 0:00:11]} 59. e4 {[%clk 0:00:14]}  Kxe4 {[%clk 0:00:11]} 60. Kg2 {[%clk 0:00:14]}  Kf4 {[%clk 0:00:11]} 61. Kh1 {[%clk 0:00:15]}  Kf3 {[%clk 0:00:11]} 62. Kg1 {[%clk 0:00:16]}  h3 {[%clk 0:00:12]} 63. Kh1 {[%clk 0:00:17]}  h2 {[%clk 0:00:12]} 1/2-1/2


[Site "https://www.chess.com"]

[Event "Titled Tuesday Blitz February 01 A 2022"]
[White "Paravyan, David"]
[Black "Shimanov, Aleksandr"]
[WhiteFideId "4194985"]
[BlackFideId "4198603"]
[WhiteElo "2569"]
[BlackElo "2636"]
[Result "1-0"]
[Round "05"]
[TimeControl "180+1"]
[Date "2022.02.01"]
[WhiteClock "0:01:13"]
[BlackClock "0:00:07"]

1. e4 {[%clk 0:02:47]}  d5 {[%clk 0:02:59]} 2. exd5 {[%clk 0:02:46]}  Qxd5 {[%clk 0:03:00]} 3. Nc3 {[%clk 0:02:47]}  Qe5+ {[%clk 0:03:00]} 4. Be2 {[%clk 0:02:47]}  Bg4 {[%clk 0:03:01]} 5. d4 {[%clk 0:02:44]}  Bxe2 {[%clk 0:03:01]} 6. Ngxe2 {[%clk 0:02:44]}  Qa5 {[%clk 0:03:02]} 7. O-O {[%clk 0:02:44]}  Nf6 {[%clk 0:03:01]} 8. b4 {[%clk 0:02:36]}  Qh5 {[%clk 0:03:01]} 9. Qd3 {[%clk 0:02:33]}  e6 {[%clk 0:03:00]} 10. Nf4 {[%clk 0:02:32]}  Qf5 {[%clk 0:03:00]} 11. Qxf5 {[%clk 0:02:29]}  exf5 {[%clk 0:03:01]} 12. Ncd5 {[%clk 0:02:20]}  Nxd5 {[%clk 0:02:56]} 13. Nxd5 {[%clk 0:02:21]}  Kd7 {[%clk 0:02:55]} 14. Bf4 {[%clk 0:02:17]}  Bd6 {[%clk 0:02:39]} 15. Bxd6 {[%clk 0:02:17]}  Kxd6 {[%clk 0:02:40]} 16. Ne3 {[%clk 0:02:15]}  g6 {[%clk 0:02:35]} 17. Nc4+ {[%clk 0:02:11]}  Ke6 {[%clk 0:02:32]} 18. Rfe1+ {[%clk 0:02:09]}  Kf6 {[%clk 0:02:32]} 19. Ne5 {[%clk 0:02:06]}  Rd8 {[%clk 0:02:32]} 20. c3 {[%clk 0:02:05]}  a5 {[%clk 0:02:15]} 21. a3 {[%clk 0:02:05]}  Nd7 {[%clk 0:02:12]} 22. Nc4 {[%clk 0:01:58]}  axb4 {[%clk 0:01:52]} 23. axb4 {[%clk 0:01:59]}  Rxa1 {[%clk 0:01:43]} 24. Rxa1 {[%clk 0:01:58]}  b5 {[%clk 0:01:33]} 25. Ne3 {[%clk 0:01:58]}  f4 {[%clk 0:01:28]} 26. Nd5+ {[%clk 0:01:58]}  Kf5 {[%clk 0:01:14]} 27. Nxc7 {[%clk 0:01:57]}  Nb6 {[%clk 0:00:33]} 28. Nxb5 {[%clk 0:01:55]}  Nd5 {[%clk 0:00:33]} 29. Rb1 {[%clk 0:01:51]}  Ke4 {[%clk 0:00:32]} 30. c4 {[%clk 0:01:51]}  Nb6 {[%clk 0:00:30]} 31. c5 {[%clk 0:01:51]}  Nd5 {[%clk 0:00:30]} 32. c6 {[%clk 0:01:36]}  Kd3 {[%clk 0:00:27]} 33. c7 {[%clk 0:01:32]}  Rc8 {[%clk 0:00:26]} 34. Rc1 {[%clk 0:01:32]}  Kd2 {[%clk 0:00:19]} 35. Rc5 {[%clk 0:01:30]}  Ra8 {[%clk 0:00:09]} 36. h3 {[%clk 0:01:26]}  Ne3 {[%clk 0:00:07]} 37. fxe3 {[%clk 0:01:19]}  fxe3 {[%clk 0:00:06]} 38. c8=Q {[%clk 0:01:13]}  Ra1+ {[%clk 0:00:06]} 39. Kh2 {[%clk 0:01:13]}  e2 {[%clk 0:00:07]} 40. Rc2+ {[%clk 0:01:14]}  Kd1 {[%clk 0:00:07]} 41. Rxe2 {[%clk 0:01:13]} 1-0


[Site "https://www.chess.com"]

[Event "Titled Tuesday Blitz February 01 A 2022"]
[White "Savchenko, Boris"]
[Black "Dronavalli, Harika"]
[WhiteFideId "4147332"]
[BlackFideId "5015197"]
[WhiteElo "2512"]
[BlackElo "2382"]
[Result "1-0"]
[Round "05"]
[TimeControl "180+1"]
[Date "2022.02.01"]
[WhiteClock "0:01:59"]
[BlackClock "0:01:43"]

1. e4 {[%clk 0:03:00]}  c5 {[%clk 0:02:59]} 2. Nf3 {[%clk 0:02:59]}  Nc6 {[%clk 0:02:59]} 3. d4 {[%clk 0:02:58]}  cxd4 {[%clk 0:02:59]} 4. Nxd4 {[%clk 0:02:59]}  Nf6 {[%clk 0:03:00]} 5. Nc3 {[%clk 0:02:59]}  e5 {[%clk 0:03:00]} 6. Ndb5 {[%clk 0:02:59]}  d6 {[%clk 0:03:00]} 7. Bg5 {[%clk 0:02:58]}  a6 {[%clk 0:03:00]} 8. Na3 {[%clk 0:02:59]}  b5 {[%clk 0:03:01]} 9. Nd5 {[%clk 0:02:59]}  Be7 {[%clk 0:03:01]} 10. Bxf6 {[%clk 0:03:00]}  Bxf6 {[%clk 0:03:01]} 11. c4 {[%clk 0:03:01]}  b4 {[%clk 0:03:00]} 12. Nc2 {[%clk 0:03:02]}  O-O {[%clk 0:03:01]} 13. Be2 {[%clk 0:03:02]}  a5 {[%clk 0:02:58]} 14. O-O {[%clk 0:03:01]}  Bg5 {[%clk 0:02:57]} 15. Bg4 {[%clk 0:02:59]}  Be6 {[%clk 0:02:55]} 16. Nde3 {[%clk 0:02:57]}  Bxe3 {[%clk 0:02:46]} 17. Nxe3 {[%clk 0:02:56]}  Nd4 {[%clk 0:02:46]} 18. Rc1 {[%clk 0:02:55]}  g6 {[%clk 0:02:42]} 19. Bxe6 {[%clk 0:02:52]}  fxe6 {[%clk 0:02:41]} 20. c5 {[%clk 0:02:52]}  d5 {[%clk 0:02:33]} 21. exd5 {[%clk 0:02:41]}  exd5 {[%clk 0:02:34]} 22. f4 {[%clk 0:02:31]}  exf4 {[%clk 0:02:10]} 23. Qxd4 {[%clk 0:02:25]}  fxe3 {[%clk 0:02:09]} 24. Rxf8+ {[%clk 0:02:23]}  Kxf8 {[%clk 0:02:08]} 25. Qh8+ {[%clk 0:02:21]}  Ke7 {[%clk 0:01:59]} 26. Qe5+ {[%clk 0:02:08]}  Kf8 {[%clk 0:01:56]} 27. Rf1+ {[%clk 0:02:04]}  Kg8 {[%clk 0:01:56]} 28. Qe6+ {[%clk 0:02:04]}  Kh8 {[%clk 0:01:55]} 29. Rf7 {[%clk 0:02:03]}  Qg5 {[%clk 0:01:43]} 30. h4 {[%clk 0:01:59]} 1-0


[Site "https://www.chess.com"]